{"text_format":"3","workbook":"xlsx","n_sheets":2,"sheets":["Dispositif de suivi de projet","Installation"],"not_rendered":{"defined_names":6},"read":"whole","date_system":"1900"}

{"sheet":"Dispositif de suivi de projet","index":0,"n_rows":13,"n_cols":15,"rows_kept":13}
[null,"Dispositif de suivi de projet"]
[null,null,"Pourcentage d’excédent / de déficit à signaler : ",{"v":0.25,"d":"25%"}]
[]
[null,"Projet","Catégorie","Affecté à","Estimé\nDébut","Estimé \nFin","Travail estimé (en heures)","Durée estimée (en jours)","Réel \nDébut","Réel\nFin","Icône indicateur pour le travail réel excédentaire/déficitaire (en heures)","Travail réel (en heures)","Icône indicateur pour la durée réelle excédentaire/déficitaire (en jour)","Durée réelle (en jours)","Notes"]
[null,"Projet 1","Catégorie 1","Employé 1",{"$f":"TODAY()-65","v":"2023-02-04"},{"$f":"TODAY()-5","v":"2023-04-05"},210,{"$f":"IF(COUNTA('Dispositif de suivi de projet'!$E5,'Dispositif de suivi de projet'!$F5)<>2,\"\",DAYS360('Dispositif de suivi de projet'!$E5,'Dispositif de suivi de projet'!$F5,FALSE))","v":61},{"$f":"TODAY()-65","v":"2023-02-04"},{"$f":"TODAY()","v":"2023-04-10"},{"$f":"IFERROR(IF(SuiviProjet[[#This Row],[Travail réel (en heures)]]=0,\"\",IF(ABS((SuiviProjet[[#This Row],[Travail réel (en heures)]]-SuiviProjet[[#This Row],[Travail estimé (en heures)]])/SuiviProjet[[#This Row],[Travail estimé (en heures)]])>IndicateurPourcent,1,0)),\"\")","v":1},300,{"$f":"IFERROR(IF(SuiviProjet[[#This Row],[Durée réelle (en jours)]]=0,\"\",IF(ABS((SuiviProjet[[#This Row],[Durée réelle (en jours)]]-SuiviProjet[[#This Row],[Durée estimée (en jours)]])/SuiviProjet[[#This Row],[Durée estimée (en jours)]])>IndicateurPourcent,1,0)),\"\")","v":0},{"$f":"IF(COUNTA('Dispositif de suivi de projet'!$I5,'Dispositif de suivi de projet'!$J5)<>2,\"\",DAYS360('Dispositif de suivi de projet'!$I5,'Dispositif de suivi de projet'!$J5,FALSE))","v":66}]
[null,"Projet 2","Catégorie 2","Employé 4",{"$f":"TODAY()-41","v":"2023-02-28"},{"$f":"TODAY()-10","v":"2023-03-31"},400,{"$f":"IF(COUNTA('Dispositif de suivi de projet'!$E6,'Dispositif de suivi de projet'!$F6)<>2,\"\",DAYS360('Dispositif de suivi de projet'!$E6,'Dispositif de suivi de projet'!$F6,FALSE))","v":30},{"$f":"TODAY()-41","v":"2023-02-28"},{"$f":"TODAY()-7","v":"2023-04-03"},{"$f":"IFERROR(IF(SuiviProjet[[#This Row],[Travail réel (en heures)]]=0,\"\",IF(ABS((SuiviProjet[[#This Row],[Travail réel (en heures)]]-SuiviProjet[[#This Row],[Travail estimé (en heures)]])/SuiviProjet[[#This Row],[Travail estimé (en heures)]])>IndicateurPourcent,1,0)),\"\")","v":0},390,{"$f":"IFERROR(IF(SuiviProjet[[#This Row],[Durée réelle (en jours)]]=0,\"\",IF(ABS((SuiviProjet[[#This Row],[Durée réelle (en jours)]]-SuiviProjet[[#This Row],[Durée estimée (en jours)]])/SuiviProjet[[#This Row],[Durée estimée (en jours)]])>IndicateurPourcent,1,0)),\"\")","v":0},{"$f":"IF(COUNTA('Dispositif de suivi de projet'!$I6,'Dispositif de suivi de projet'!$J6)<>2,\"\",DAYS360('Dispositif de suivi de projet'!$I6,'Dispositif de suivi de projet'!$J6,FALSE))","v":33}]
[null,"Projet 3","Catégorie 1","Employé 2",{"$f":"TODAY()-100","v":"2022-12-31"},{"$f":"TODAY()-40","v":"2023-03-01"},500,{"$f":"IF(COUNTA('Dispositif de suivi de projet'!$E7,'Dispositif de suivi de projet'!$F7)<>2,\"\",DAYS360('Dispositif de suivi de projet'!$E7,'Dispositif de suivi de projet'!$F7,FALSE))","v":61},{"$f":"TODAY()-100","v":"2022-12-31"},{"$f":"TODAY()-27","v":"2023-03-14"},{"$f":"IFERROR(IF(SuiviProjet[[#This Row],[Travail réel (en heures)]]=0,\"\",IF(ABS((SuiviProjet[[#This Row],[Travail réel (en heures)]]-SuiviProjet[[#This Row],[Travail estimé (en heures)]])/SuiviProjet[[#This Row],[Travail estimé (en heures)]])>IndicateurPourcent,1,0)),\"\")","v":0},500,{"$f":"IFERROR(IF(SuiviProjet[[#This Row],[Durée réelle (en jours)]]=0,\"\",IF(ABS((SuiviProjet[[#This Row],[Durée réelle (en jours)]]-SuiviProjet[[#This Row],[Durée estimée (en jours)]])/SuiviProjet[[#This Row],[Durée estimée (en jours)]])>IndicateurPourcent,1,0)),\"\")","v":0},{"$f":"IF(COUNTA('Dispositif de suivi de projet'!$I7,'Dispositif de suivi de projet'!$J7)<>2,\"\",DAYS360('Dispositif de suivi de projet'!$I7,'Dispositif de suivi de projet'!$J7,FALSE))","v":74}]
[null,"Projet 4","Catégorie 2","Employé 3",{"$f":"TODAY()-90","v":"2023-01-10"},{"$f":"TODAY()-80","v":"2023-01-20"},250,{"$f":"IF(COUNTA('Dispositif de suivi de projet'!$E8,'Dispositif de suivi de projet'!$F8)<>2,\"\",DAYS360('Dispositif de suivi de projet'!$E8,'Dispositif de suivi de projet'!$F8,FALSE))","v":10},{"$f":"TODAY()-90","v":"2023-01-10"},{"$f":"TODAY()-71","v":"2023-01-29"},{"$f":"IFERROR(IF(SuiviProjet[[#This Row],[Travail réel (en heures)]]=0,\"\",IF(ABS((SuiviProjet[[#This Row],[Travail réel (en heures)]]-SuiviProjet[[#This Row],[Travail estimé (en heures)]])/SuiviProjet[[#This Row],[Travail estimé (en heures)]])>IndicateurPourcent,1,0)),\"\")","v":0},276,{"$f":"IFERROR(IF(SuiviProjet[[#This Row],[Durée réelle (en jours)]]=0,\"\",IF(ABS((SuiviProjet[[#This Row],[Durée réelle (en jours)]]-SuiviProjet[[#This Row],[Durée estimée (en jours)]])/SuiviProjet[[#This Row],[Durée estimée (en jours)]])>IndicateurPourcent,1,0)),\"\")","v":1},{"$f":"IF(COUNTA('Dispositif de suivi de projet'!$I8,'Dispositif de suivi de projet'!$J8)<>2,\"\",DAYS360('Dispositif de suivi de projet'!$I8,'Dispositif de suivi de projet'!$J8,FALSE))","v":19}]
[null,"Projet 5","Catégorie 3","Employé 2",{"$f":"TODAY()-90","v":"2023-01-10"},{"$f":"TODAY()-50","v":"2023-02-19"},300,{"$f":"IF(COUNTA('Dispositif de suivi de projet'!$E9,'Dispositif de suivi de projet'!$F9)<>2,\"\",DAYS360('Dispositif de suivi de projet'!$E9,'Dispositif de suivi de projet'!$F9,FALSE))","v":39},{"$f":"TODAY()-90","v":"2023-01-10"},{"$f":"TODAY()-44","v":"2023-02-25"},{"$f":"IFERROR(IF(SuiviProjet[[#This Row],[Travail réel (en heures)]]=0,\"\",IF(ABS((SuiviProjet[[#This Row],[Travail réel (en heures)]]-SuiviProjet[[#This Row],[Travail estimé (en heures)]])/SuiviProjet[[#This Row],[Travail estimé (en heures)]])>IndicateurPourcent,1,0)),\"\")","v":0},310,{"$f":"IFERROR(IF(SuiviProjet[[#This Row],[Durée réelle (en jours)]]=0,\"\",IF(ABS((SuiviProjet[[#This Row],[Durée réelle (en jours)]]-SuiviProjet[[#This Row],[Durée estimée (en jours)]])/SuiviProjet[[#This Row],[Durée estimée (en jours)]])>IndicateurPourcent,1,0)),\"\")","v":0},{"$f":"IF(COUNTA('Dispositif de suivi de projet'!$I9,'Dispositif de suivi de projet'!$J9)<>2,\"\",DAYS360('Dispositif de suivi de projet'!$I9,'Dispositif de suivi de projet'!$J9,FALSE))","v":45}]
[null,"Projet 6","Catégorie 4","Employé 4",{"$f":"TODAY()-60","v":"2023-02-09"},{"$f":"TODAY()-50","v":"2023-02-19"},500,{"$f":"IF(COUNTA('Dispositif de suivi de projet'!$E10,'Dispositif de suivi de projet'!$F10)<>2,\"\",DAYS360('Dispositif de suivi de projet'!$E10,'Dispositif de suivi de projet'!$F10,FALSE))","v":10},{"$f":"TODAY()-60","v":"2023-02-09"},{"$f":"TODAY()-45","v":"2023-02-24"},{"$f":"IFERROR(IF(SuiviProjet[[#This Row],[Travail réel (en heures)]]=0,\"\",IF(ABS((SuiviProjet[[#This Row],[Travail réel (en heures)]]-SuiviProjet[[#This Row],[Travail estimé (en heures)]])/SuiviProjet[[#This Row],[Travail estimé (en heures)]])>IndicateurPourcent,1,0)),\"\")","v":0},510,{"$f":"IFERROR(IF(SuiviProjet[[#This Row],[Durée réelle (en jours)]]=0,\"\",IF(ABS((SuiviProjet[[#This Row],[Durée réelle (en jours)]]-SuiviProjet[[#This Row],[Durée estimée (en jours)]])/SuiviProjet[[#This Row],[Durée estimée (en jours)]])>IndicateurPourcent,1,0)),\"\")","v":1},{"$f":"IF(COUNTA('Dispositif de suivi de projet'!$I10,'Dispositif de suivi de projet'!$J10)<>2,\"\",DAYS360('Dispositif de suivi de projet'!$I10,'Dispositif de suivi de projet'!$J10,FALSE))","v":15}]
[null,"Projet 7","Catégorie 5","Employé 1",{"$f":"TODAY()-44","v":"2023-02-25"},{"$f":"TODAY()-20","v":"2023-03-21"},750,{"$f":"IF(COUNTA('Dispositif de suivi de projet'!$E11,'Dispositif de suivi de projet'!$F11)<>2,\"\",DAYS360('Dispositif de suivi de projet'!$E11,'Dispositif de suivi de projet'!$F11,FALSE))","v":26},{"$f":"TODAY()-44","v":"2023-02-25"},{"$f":"TODAY()-15","v":"2023-03-26"},{"$f":"IFERROR(IF(SuiviProjet[[#This Row],[Travail réel (en heures)]]=0,\"\",IF(ABS((SuiviProjet[[#This Row],[Travail réel (en heures)]]-SuiviProjet[[#This Row],[Travail estimé (en heures)]])/SuiviProjet[[#This Row],[Travail estimé (en heures)]])>IndicateurPourcent,1,0)),\"\")","v":0},790,{"$f":"IFERROR(IF(SuiviProjet[[#This Row],[Durée réelle (en jours)]]=0,\"\",IF(ABS((SuiviProjet[[#This Row],[Durée réelle (en jours)]]-SuiviProjet[[#This Row],[Durée estimée (en jours)]])/SuiviProjet[[#This Row],[Durée estimée (en jours)]])>IndicateurPourcent,1,0)),\"\")","v":0},{"$f":"IF(COUNTA('Dispositif de suivi de projet'!$I11,'Dispositif de suivi de projet'!$J11)<>2,\"\",DAYS360('Dispositif de suivi de projet'!$I11,'Dispositif de suivi de projet'!$J11,FALSE))","v":31}]
[null,"Projet 8","Catégorie 2","Employé 1",{"$f":"TODAY()-39","v":"2023-03-02"},{"$f":"TODAY()","v":"2023-04-10"},450,{"$f":"IF(COUNTA('Dispositif de suivi de projet'!$E12,'Dispositif de suivi de projet'!$F12)<>2,\"\",DAYS360('Dispositif de suivi de projet'!$E12,'Dispositif de suivi de projet'!$F12,FALSE))","v":38},{"$f":"TODAY()-45","v":"2023-02-24"},{"$f":"TODAY()-5","v":"2023-04-05"},{"$f":"IFERROR(IF(SuiviProjet[[#This Row],[Travail réel (en heures)]]=0,\"\",IF(ABS((SuiviProjet[[#This Row],[Travail réel (en heures)]]-SuiviProjet[[#This Row],[Travail estimé (en heures)]])/SuiviProjet[[#This Row],[Travail estimé (en heures)]])>IndicateurPourcent,1,0)),\"\")","v":0},430,{"$f":"IFERROR(IF(SuiviProjet[[#This Row],[Durée réelle (en jours)]]=0,\"\",IF(ABS((SuiviProjet[[#This Row],[Durée réelle (en jours)]]-SuiviProjet[[#This Row],[Durée estimée (en jours)]])/SuiviProjet[[#This Row],[Durée estimée (en jours)]])>IndicateurPourcent,1,0)),\"\")","v":0},{"$f":"IF(COUNTA('Dispositif de suivi de projet'!$I12,'Dispositif de suivi de projet'!$J12)<>2,\"\",DAYS360('Dispositif de suivi de projet'!$I12,'Dispositif de suivi de projet'!$J12,FALSE))","v":41}]
[null,"Projet 9","Catégorie 4","Employé 1","2016-02-05","2016-06-09",250,{"$f":"IF(COUNTA('Dispositif de suivi de projet'!$E13,'Dispositif de suivi de projet'!$F13)<>2,\"\",DAYS360('Dispositif de suivi de projet'!$E13,'Dispositif de suivi de projet'!$F13,FALSE))","v":124},"2016-03-05","2016-05-05",{"$f":"IFERROR(IF(SuiviProjet[[#This Row],[Travail réel (en heures)]]=0,\"\",IF(ABS((SuiviProjet[[#This Row],[Travail réel (en heures)]]-SuiviProjet[[#This Row],[Travail estimé (en heures)]])/SuiviProjet[[#This Row],[Travail estimé (en heures)]])>IndicateurPourcent,1,0)),\"\")","v":0},200,{"$f":"IFERROR(IF(SuiviProjet[[#This Row],[Durée réelle (en jours)]]=0,\"\",IF(ABS((SuiviProjet[[#This Row],[Durée réelle (en jours)]]-SuiviProjet[[#This Row],[Durée estimée (en jours)]])/SuiviProjet[[#This Row],[Durée estimée (en jours)]])>IndicateurPourcent,1,0)),\"\")","v":1},{"$f":"IF(COUNTA('Dispositif de suivi de projet'!$I13,'Dispositif de suivi de projet'!$J13)<>2,\"\",DAYS360('Dispositif de suivi de projet'!$I13,'Dispositif de suivi de projet'!$J13,FALSE))","v":60}]

{"sheet":"Installation","index":1,"n_rows":10,"n_cols":3,"rows_kept":10}
[null,"Installation"]
[]
[]
[null,"Nom de la catégorie","Nom de l’employé"]
[null,"Catégorie 1","Employé 1"]
[null,"Catégorie 2","Employé 2"]
[null,"Catégorie 3","Employé 3"]
[null,"Catégorie 4","Employé 4"]
[null,"Catégorie 5","Employé 5"]
[null,"Catégorie 6","Employé 6"]